bitfinex/quotes_BTCUSD_20240620
["timestamp","ask_amount","ask_price","bid_price","bid_amount"]
[1718892277463,0.03439455,65111.0,65100.0,0.14657243]
[1718892277897,0.03439455,65111.0,65107.0,0.008]
[1718892278108,0.1976,65110.0,65100.0,0.14657243]
[1718892278323,1.31061638,65109.0,65100.0,0.14657243]
[1718892278583,0.25190764,65108.0,65106.0,0.008]
[1718892278801,0.25190764,65108.0,65100.0,0.14657243]
[1718892278802,0.13463045,65108.0,65100.0,0.14657243]
[1718892279230,0.1,65108.0,65107.0,0.008]
[1718892279667,0.001,65111.0,65107.0,0.008]
[1718892279898,0.001,65111.0,65108.0,0.15256112]
[1718892280103,0.001,65111.0,65110.0,0.00018488]
[1718892280768,0.00086,65112.0,65110.0,0.00018488]
[1718892281179,0.00081512,65108.0,65106.0,0.007]
[1718892281407,0.00086,65112.0,65101.0,0.1879]
[1718892281619,0.00086,65112.0,65102.0,0.15256112]
[1718892281838,0.001,65111.0,65110.0,0.008]
[1718892282042,0.00186,65112.0,65106.0,0.004]
[1718892282246,0.23749455,65111.0,65106.0,0.004]
[1718892282481,0.001,65108.0,65100.0,0.14657243]
[1718892282905,0.002,65108.0,65106.0,0.004]
[1718892283671,0.03463045,65107.0,65106.0,0.004]
[1718892283867,0.09175204,65107.0,65106.0,0.004]
[1718892284270,0.001,65108.0,65106.0,0.004]
[1718892284854,0.001,65108.0,65106.0,0.017]
[1718892285061,0.001,65108.0,65107.0,0.62564284]
[1718892285259,0.001,65108.0,65107.0,0.54936112]
[1718892285563,0.001,65108.0,65107.0,0.3968]
[1718892285775,0.001,65108.0,65106.0,0.01]
[1718892285981,0.001,65108.0,65106.0,0.16256112]
[1718892286197,0.001,65108.0,65107.0,0.57526112]
[1718892287254,0.00086,65112.0,65107.0,0.57526112]
[1718892287487,0.00086,65112.0,65107.0,0.58726112]
[1718892287488,0.001,65108.0,65107.0,0.58726112]
[1718892287938,0.002,65108.0,65107.0,0.58726112]
[1718892288144,0.002,65108.0,65107.0,0.59726112]
[1718892288364,0.09686,65131.0,65108.0,0.01]
[1718892288626,0.55455034,65131.0,65114.0,0.07628172]
[1718892288796,0.4162,65129.0,65115.0,0.15256112]
[1718892289899,0.4162,65129.0,65108.0,0.1943]
[1718892290104,0.03327422,65128.0,65108.0,0.34686112]
[1718892290317,0.03327422,65128.0,65108.0,0.1943]
[1718892290533,0.04494742,65127.0,65108.0,0.1943]
[1718892290745,0.03339214,65126.0,65108.0,0.1943]
[1718892292491,0.04494742,65127.0,65109.0,0.22884284]
[1718892292701,0.002,65126.0,65109.0,0.22884284]
[1718892293134,0.1,65128.0,65110.0,0.023]
[1718892293340,0.01,65127.0,65111.0,0.15256112]
[1718892293551,0.001,65126.0,65111.0,0.15256112]
[1718892293791,0.1,65133.0,65111.0,0.15256112]
[1718892294426,0.03286154,65132.0,65111.0,0.15256112]
[1718892294635,0.0716301,65131.0,65108.0,0.1943]
[1718892294903,0.4696883,65130.0,65108.0,0.1943]
[1718892295149,0.01,65126.0,65108.0,0.1943]
[1718892295364,0.35266845,65125.0,65108.0,0.1943]
[1718892295589,0.41921736,65124.0,65108.0,0.1943]
[1718892295802,0.31921736,65123.0,65108.0,0.1943]
[1718892296021,0.41921736,65122.0,65110.0,0.07628172]
[1718892296244,0.31921736,65121.0,65111.0,0.15256112]
[1718892296460,0.41921736,65120.0,65111.0,0.15256112]
[1718892296676,0.31921736,65119.0,65111.0,0.15256112]
[1718892296897,0.31921736,65118.0,65111.0,0.15256112]
[1718892297112,0.31921736,65117.0,65111.0,0.15256112]
[1718892297322,0.41921736,65116.0,65112.0,0.07628172]
[1718892297537,0.1,65120.0,65113.0,0.15256112]
[1718892297538,0.31921736,65115.0,65113.0,0.15256112]
[1718892297739,0.31921736,65114.0,65113.0,0.15256112]
[1718892297946,0.33021736,65118.0,65113.0,0.15256112]
[1718892298159,0.1,65114.0,65113.0,0.15256112]
[1718892298854,0.31921736,65115.0,65113.0,0.15256112]
[1718892298855,0.0616301,65131.0,65115.0,0.01]
[1718892299094,0.001,65122.0,65119.0,0.01]
[1718892299324,0.1,65135.0,65121.0,0.01]
[1718892299558,0.02409178,65136.0,65123.0,0.1889]
[1718892299559,0.02965348,65131.0,65123.0,0.1889]
[1718892299835,0.31911866,65130.0,65124.0,0.15256112]
[1718892300070,0.16096366,65129.0,65124.0,0.15256112]
[1718892300328,0.02409178,65136.0,65124.0,0.15256112]
[1718892300329,0.0522828,65136.0,65124.0,0.15256112]
[1718892300571,0.4538,65134.0,65119.0,0.014]
[1718892300833,0.06763647,65130.0,65101.0,0.4255]
[1718892301063,0.06763647,65127.0,65123.0,0.014]
[1718892301284,0.73109889,65129.0,65123.0,0.014]
[1718892301285,0.06763647,65126.0,65123.0,0.014]
[1718892301573,0.09018196,65124.0,65123.0,0.014]
[1718892301827,0.09030556,65124.0,65123.0,0.014]
[1718892302055,0.1,65125.0,65123.0,0.014]
[1718892302323,0.16773368,65125.0,65123.0,0.16656112]
[1718892302580,0.13527294,65135.0,65123.0,0.16656112]
[1718892302581,0.06773368,65130.0,65123.0,0.16656112]
[1718892302831,0.06773368,65130.0,65119.0,0.1852]
[1718892303059,0.09031127,65132.0,65124.0,0.007]
[1718892303060,0.11272745,65126.0,65124.0,0.007]
[1718892303291,0.1897,65129.0,65115.0,0.1862]
[1718892303292,0.03024275,65125.0,65115.0,0.1862]
[1718892303533,0.06772352,65118.0,65111.0,0.2508]
[1718892304023,0.06772352,65117.0,65110.0,0.1862]
[1718892304506,0.06772352,65116.0,65110.0,0.1862]
[1718892305522,0.06772352,65115.0,65112.0,0.2402]
[1718892305739,0.1,65115.0,65113.0,0.15256112]
[1718892306899,0.06772352,65119.0,65113.0,0.15256112]
[1718892307139,0.06772352,65118.0,65112.0,0.2542]
[1718892307389,0.02708941,65119.0,65100.0,0.14657243]
[1718892307390,0.11287254,65114.0,65100.0,0.14657243]
[1718892307642,0.0677824,65104.0,65100.0,0.14657243]
[1718892307892,0.32497294,65104.0,65100.0,0.14657243]
[1718892308141,0.1997,65104.0,65100.0,0.14657243]
[1718892308378,0.13549577,65101.0,65100.0,0.14657243]
[1718892308615,0.1,65101.0,65100.0,0.14657243]
[1718892308838,0.31357512,65101.0,65100.0,0.14657243]
[1718892309052,0.35897236,65101.0,65100.0,0.14657243]
[1718892309254,0.35897236,65101.0,65100.0,0.11227848]
[1718892309255,0.40086345,65101.0,65100.0,0.11227848]
[1718892309462,0.39086345,65101.0,65100.0,0.11227848]
[1718892309674,0.41086345,65101.0,65100.0,0.11227848]
[1718892309884,0.41086345,65101.0,65100.0,0.02769848]
[1718892309885,0.70156345,65101.0,65100.0,0.02769848]
[1718892310095,0.73231612,65101.0,65100.0,0.02769848]
[1718892310311,0.83231612,65101.0,65100.0,0.02769848]
[1718892310518,0.83231612,65101.0,65100.0,0.00469848]
[1718892310519,1.02531612,65101.0,65100.0,0.00469848]
[1718892310729,0.92531612,65101.0,65100.0,0.00469848]
[1718892310941,1.17763592,65101.0,65100.0,0.00469848]
[1718892311147,0.94955771,65101.0,65100.0,0.00469848]
[1718892311351,0.77723791,65101.0,65100.0,0.00469848]
[1718892311556,0.31214067,65101.0,65100.0,0.00469848]
[1718892311773,0.42493709,65101.0,65100.0,0.00469848]
[1718892311983,0.27982154,65101.0,65100.0,0.00469848]
[1718892312201,0.004,65101.0,65100.0,0.00469848]
[1718892313049,0.06768087,65104.0,65100.0,0.00469848]
[1718892313255,0.09023329,65107.0,65100.0,0.00469848]
[1718892313462,0.07628172,65106.0,65100.0,0.01469848]
[1718892313671,0.07628172,65106.0,65100.0,0.01000001]
[1718892313672,0.4274,65101.0,65100.0,0.01000001]
[1718892313884,0.4274,65101.0,65092.0,0.49005682]
[1718892313885,0.01,65100.0,65092.0,0.4185153]
[1718892314119,0.01,65096.0,65092.0,0.4185153]
[1718892314322,0.632711,65095.0,65092.0,0.4185153]
[1718892314531,0.216885,65094.0,65092.0,0.4185153]
[1718892314789,0.48875517,65093.0,65092.0,0.4185153]
[1718892315053,0.27195017,65093.0,65092.0,0.4185153]
[1718892315280,0.37195017,65093.0,65092.0,0.4185153]
[1718892315494,0.43402877,65093.0,65092.0,0.4185153]
[1718892315705,0.39681477,65093.0,65092.0,0.4185153]
[1718892316120,0.39681477,65093.0,65092.0,0.41651146]
[1718892316336,0.39681477,65093.0,65092.0,0.40048686]
[1718892316576,0.86001477,65093.0,65092.0,0.40048686]
[1718892316778,0.85001477,65093.0,65092.0,0.40048686]
[1718892316992,0.77793617,65093.0,65092.0,0.40048686]
[1718892317208,0.19017937,65093.0,65092.0,0.40048686]
[1718892317420,0.19017937,65093.0,65092.0,0.40548686]
[1718892317421,0.22065933,65093.0,65092.0,0.40548686]
[1718892317659,0.1523198,65107.0,65092.0,0.40548686]
[1718892317660,0.09017937,65102.0,65092.0,0.40548686]
[1718892317877,0.1,65093.0,65092.0,0.40548686]
[1718892318084,0.1,65093.0,65092.0,0.75724798]
[1718892318740,0.02123198,65107.0,65092.0,0.75724798]
[1718892318972,0.09017937,65111.0,65093.0,0.15256112]
[1718892319179,0.09017937,65111.0,65094.0,0.2465]
[1718892319389,0.04762496,65114.0,65094.0,0.2465]
[1718892319390,0.04762496,65114.0,65095.0,0.15256112]
[1718892319606,0.04762496,65114.0,65095.0,0.16256112]
[1718892319848,0.09017937,65117.0,65095.0,0.16256112]
[1718892320316,0.007,65102.0,65095.0,0.15256112]
[1718892320562,0.007,65102.0,65094.0,0.2465]
[1718892320766,0.07628172,65112.0,65094.0,0.39906112]
[1718892320973,0.02012095,65111.0,65095.0,0.001]
[1718892321200,0.15522326,65111.0,65095.0,0.001]
[1718892321409,0.15522326,65111.0,65092.0,0.40048686]
[1718892321410,0.16646109,65104.0,65092.0,0.40048686]
[1718892321631,0.09017937,65102.0,65092.0,0.40048686]
[1718892321848,0.09017937,65102.0,65095.0,0.007]
[1718892321849,0.101,65102.0,65095.0,0.007]
[1718892322261,0.101,65102.0,65100.0,0.001]
[1718892322262,0.01,65101.0,65100.0,0.001]
[1718892322469,0.01,65101.0,65100.0,0.34686112]
[1718892322672,0.01,65101.0,65100.0,0.58996112]
[1718892323129,0.11272422,65122.0,65100.0,0.58996112]
[1718892323130,0.09017937,65121.0,65102.0,0.01]
[1718892323359,0.09017937,65121.0,65103.0,0.17556112]
[1718892323360,0.45769034,65115.0,65103.0,0.17556112]
[1718892323568,0.005,65111.0,65103.0,0.15256112]
[1718892323774,0.09017937,65127.0,65103.0,0.15256112]
[1718892324231,0.07628172,65124.0,65103.0,0.15256112]
[1718892324437,0.0200148,65123.0,65103.0,0.15256112]
[1718892324649,0.0200148,65123.0,65092.0,0.58228686]
[1718892324650,0.07628172,65117.0,65092.0,0.58228686]
[1718892324859,0.07628172,65117.0,65103.0,0.014]
[1718892324860,0.001,65111.0,65103.0,0.014]
[1718892325492,0.01913587,65111.0,65103.0,0.014]
[1718892325993,0.09017937,65107.0,65103.0,0.014]
[1718892326222,0.09017937,65105.0,65092.0,0.58228686]
[1718892326438,0.07620398,65109.0,65092.0,0.58228686]
[1718892326439,0.09017937,65114.0,65093.0,0.5]
[1718892326643,0.09017937,65121.0,65101.0,0.2453]
[1718892326853,0.09017937,65123.0,65101.0,0.2453]
[1718892327080,0.02848654,65123.0,65102.0,0.01]
[1718892327286,0.09017937,65125.0,65101.0,0.2453]
[1718892327695,0.11272422,65126.0,65101.0,0.2453]
[1718892327696,0.09017937,65124.0,65102.0,0.023]
[1718892327903,0.09017937,65125.0,65102.0,0.023]
[1718892328109,0.09017937,65125.0,65104.0,0.1996]
[1718892328323,0.06775581,65129.0,65105.0,0.033]
[1718892328573,0.11940084,65131.0,65105.0,0.033]
[1718892328574,0.09017937,65130.0,65115.0,0.1996]
[1718892328809,0.00086,65131.0,65123.0,0.01]
[1718892329023,0.00086,65131.0,65121.0,0.01]
[1718892329024,0.00086,65131.0,65124.0,0.1556317]
[1718892329247,0.02409456,65127.0,65124.0,0.1556317]
[1718892329873,0.02409456,65127.0,65126.0,0.01]
[1718892330081,0.02409456,65127.0,65126.0,0.17556112]
[1718892330286,0.02409456,65127.0,65126.0,0.40746112]
[1718892330518,0.09017937,65156.0,65126.0,0.40746112]
[1718892330519,0.0677609,65156.0,65131.0,0.1892]
[1718892330723,0.0677609,65156.0,65132.0,0.17556112]
[1718892330724,0.45769034,65148.0,65132.0,0.17556112]
[1718892330967,0.45769034,65148.0,65131.0,0.1892]
[1718892330968,0.03073993,65148.0,65131.0,0.1892]
[1718892331184,0.07628172,65142.0,65131.0,0.1892]
[1718892331393,0.07628172,65142.0,65132.0,0.00587932]
[1718892331599,0.01440426,65142.0,65132.0,0.00587932]
[1718892331816,0.0677609,65147.0,65132.0,0.00587932]
[1718892331817,0.07628172,65141.0,65132.0,0.00587932]
[1718892332240,0.0677609,65146.0,65132.0,0.15256112]
[1718892332451,0.11272422,65150.0,65133.0,0.15256112]
[1718892332452,0.1,65147.0,65133.0,0.15256112]
[1718892332655,0.1,65149.0,65133.0,0.15843835]
[1718892332865,0.0677609,65151.0,65133.0,0.15843835]
[1718892333324,0.1,65152.0,65133.0,0.15256112]
[1718892333580,0.0677609,65154.0,65137.0,0.01]
[1718892333793,0.1,65155.0,65138.0,0.15256112]
[1718892334003,0.16646109,65163.0,65138.0,0.15842793]
[1718892334004,0.003,65142.0,65138.0,0.15842793]
[1718892334433,0.1,65162.0,65138.0,0.15842793]
[1718892334654,0.1,65162.0,65138.0,0.00586681]
[1718892334655,0.07628172,65148.0,65138.0,0.00586681]
[1718892334867,0.07628172,65148.0,65121.0,0.5]
[1718892334868,0.891723,65147.0,65126.0,0.1865]
[1718892335098,0.4345,65147.0,65139.0,0.00586473]
[1718892335330,0.4345,65147.0,65127.0,0.15256112]
[1718892335331,0.19680047,65146.0,65138.0,0.008]
[1718892335793,0.07628172,65139.0,65138.0,0.008]
[1718892336514,0.01,65145.0,65138.0,0.008]
[1718892336515,0.0677609,65145.0,65138.0,0.008]
[1718892336741,0.07628172,65141.0,65138.0,0.008]
[1718892336967,0.07628172,65141.0,65111.0,0.01]
[1718892336968,0.01,65135.0,65116.0,0.45769034]
[1718892337170,0.07628172,65130.0,65116.0,0.61025146]
[1718892337379,0.41948414,65129.0,65117.0,0.00624015]
[1718892337598,0.03244892,65134.0,65117.0,0.00624015]
[1718892337599,0.1,65133.0,65117.0,0.00624015]
[1718892337815,0.1,65133.0,65108.0,0.01]
[1718892337816,0.254917,65133.0,65108.0,0.01]
[1718892338049,0.254917,65133.0,65111.0,0.46769034]
[1718892338050,0.1,65133.0,65111.0,0.46769034]
[1718892338252,0.1,65133.0,65120.0,0.2026]
[1718892338456,0.1,65133.0,65121.0,0.15562902]
[1718892338656,0.1,65133.0,65121.0,0.16185991]
[1718892338878,0.2619609,65145.0,65121.0,0.16185991]
[1718892338879,0.1,65144.0,65121.0,0.15879201]
[1718892339016,0.07928668,65143.0,65121.0,0.15879201]
[1718892339407,0.07928668,65143.0,65121.0,0.15256112]
[1718892339606,0.07928668,65143.0,65122.0,0.00929917]
[1718892339819,0.07928668,65143.0,65124.0,0.2513]
[1718892340063,0.30692422,65151.0,65126.0,0.01]
[1718892340064,0.1,65145.0,65126.0,0.01]
[1718892340264,0.2619609,65151.0,65128.0,0.1919]
[1718892340265,0.1,65150.0,65128.0,0.1919]
[1718892340470,0.04304215,65149.0,65129.0,0.16184368]
[1718892341037,0.1,65152.0,65134.0,0.1919]
[1718892341038,0.005,65143.0,65134.0,0.1919]
[1718892341262,0.005,65143.0,65135.0,0.15563087]
[1718892341461,0.005,65143.0,65137.0,0.2513]
[1718892341671,0.005,65143.0,65138.0,0.15256112]
[1718892341874,0.002,65147.0,65139.0,0.00306975]
[1718892342013,0.002,65147.0,65140.0,0.15256112]
[1718892342219,0.002,65147.0,65140.0,0.15874801]
[1718892343907,0.002,65147.0,65140.0,0.16874801]
[1718892344153,0.00086,65143.0,65140.0,0.18274801]
[1718892344359,0.00086,65143.0,65141.0,0.01]
[1718892344604,0.00086,65143.0,65142.0,0.15256112]
[1718892344807,0.00086,65143.0,65142.0,0.15874338]
[1718892345632,0.00086,65143.0,65142.0,0.35194338]
[1718892345838,0.00086,65143.0,65142.0,0.87194338]
[1718892346741,0.00086,65143.0,65142.0,1.10894338]
[1718892346897,0.00086,65143.0,65142.0,1.13194338]
[1718892347091,0.00086,65143.0,65142.0,1.23394338]
[1718892347442,0.00086,65143.0,65142.0,1.13194338]
[1718892347651,0.00086,65143.0,65142.0,1.11194338]
[1718892347824,0.00086,65143.0,65142.0,1.13194338]
[1718892348026,0.00086,65143.0,65142.0,1.14594338]
[1718892348407,0.00086,65143.0,65142.0,1.24794338]
[1718892348888,0.00086,65143.0,65142.0,1.44584338]
[1718892349103,0.00863,65168.0,65155.0,0.4539]
[1718892349306,0.00863,65168.0,65157.0,0.01]
[1718892349529,0.00863,65168.0,65158.0,0.15870635]
[1718892349530,0.03751217,65168.0,65158.0,0.15870635]
[1718892349673,0.00863,65168.0,65158.0,0.15870635]
[1718892349870,0.07628172,65160.0,65158.0,0.00614523]
[1718892350076,0.07628172,65167.0,65139.0,0.56]
[1718892350077,0.11193621,65159.0,65149.0,0.1949]
[1718892350371,0.1,65166.0,65150.0,0.15872486]
[1718892350372,0.03565449,65158.0,65150.0,0.15872486]
[1718892350584,0.03565449,65157.0,65150.0,0.15872486]
[1718892350782,0.10849117,65166.0,65152.0,0.01]
[1718892350783,0.03565449,65156.0,65152.0,0.01]
[1718892351003,0.1,65166.0,65154.0,0.4562]
[1718892351004,0.03565449,65155.0,65154.0,0.4562]
[1718892351178,0.03565449,65155.0,65154.0,0.60876112]
[1718892351403,0.03565449,65155.0,65154.0,0.6049156]
[1718892351603,0.00863,65168.0,65154.0,0.6049156]
[1718892351804,0.02865504,65167.0,65155.0,0.15256112]
[1718892352211,0.02865504,65167.0,65156.0,0.00614985]
[1718892352212,0.07628172,65166.0,65156.0,0.00614985]
[1718892352596,0.07628172,65166.0,65157.0,0.15256112]
[1718892352597,0.21475504,65165.0,65157.0,0.15256112]
[1718892352787,0.21475504,65165.0,65156.0,0.00614985]
[1718892352788,0.12865504,65164.0,65156.0,0.00614985]
[1718892352992,0.12865504,65164.0,65158.0,0.00614523]
[1718892353194,0.12865504,65164.0,65157.0,0.00614754]
[1718892353195,0.26665504,65163.0,65157.0,0.00614754]
[1718892353473,0.26665504,65163.0,65148.0,0.15256112]
[1718892353474,0.12365849,65162.0,65148.0,0.15256112]
[1718892353627,0.07628172,65158.0,65145.0,0.2305]
[1718892353829,0.07628172,65158.0,65123.0,0.5]
[1718892353830,0.07628172,65151.0,65149.0,0.00616605]
[1718892354134,0.07628172,65151.0,65135.0,0.1974]
[1718892354135,0.424338,65150.0,65135.0,0.1974]
[1718892354334,0.424338,65150.0,65136.0,0.15256112]
[1718892354335,0.2348,65148.0,65136.0,0.15256112]
[1718892354534,0.2348,65148.0,65136.0,0.15875727]
[1718892354535,0.1,65147.0,65136.0,0.15875727]
[1718892355365,0.17628172,65147.0,65136.0,0.00619615]
[1718892355699,0.1,65147.0,65137.0,0.15256112]
[1718892355911,0.02535104,65146.0,65138.0,0.01587573]
[1718892356124,0.02535104,65146.0,65140.0,0.01]
[1718892356325,0.02535104,65146.0,65145.0,0.4171]
[1718892356523,0.004,65166.0,65145.0,0.59883643]
[1718892356524,0.02863574,65159.0,65145.0,0.59883643]
[1718892356727,0.04571565,65165.0,65145.0,0.59883643]
[1718892356728,0.04571565,65165.0,65147.0,0.15256112]
[1718892356934,0.07675021,65165.0,65149.0,0.002]
[1718892357090,0.004,65166.0,65149.0,0.002]
[1718892357091,0.04100433,65164.0,65150.0,0.15256112]
[1718892357296,0.004,65166.0,65150.0,0.15256112]
[1718892357297,0.04100433,65163.0,65150.0,0.15256112]
[1718892357493,0.04100433,65162.0,65151.0,0.02916142]
[1718892357696,0.004,65166.0,65152.0,0.15256112]
[1718892357697,0.04100433,65161.0,65152.0,0.15256112]
[1718892357920,0.004,65166.0,65153.0,0.2247568]
[1718892357921,0.04100433,65160.0,65153.0,0.2247568]
[1718892358166,0.04100433,65165.0,65154.0,0.15256112]
[1718892358368,0.04100433,65164.0,65154.0,0.15256112]
[1718892358495,0.04100433,65164.0,65155.0,0.00615217]
[1718892358699,0.04100433,65163.0,65156.0,0.15256112]
[1718892359005,0.04100433,65162.0,65157.0,0.15870866]
[1718892359354,0.04100433,65161.0,65159.0,0.1836]
[1718892359579,0.04100433,65161.0,65160.0,0.17556112]
[1718892359779,0.00863,65168.0,65160.0,0.18170172]
[1718892360113,0.00863,65168.0,65167.0,1.08826112]
[1718892360313,0.00863,65168.0,65167.0,0.61738553]
[1718892360314,0.09056686,65168.0,65167.0,0.61738553]
[1718892360889,0.09056686,65168.0,65167.0,0.15868553]
[1718892362148,0.09056686,65168.0,65167.0,0.18168553]
[1718892362405,0.09056686,65168.0,65167.0,0.65014408]
[1718892362618,0.09056686,65168.0,65167.0,1.33268553]
[1718892362843,0.09056686,65168.0,65167.0,1.11078553]
[1718892363052,0.09056686,65168.0,65167.0,0.00612441]
[1718892363486,0.09056686,65168.0,65167.0,0.014]
[1718892363716,0.09056686,65168.0,65137.0,0.01]
[1718892363717,0.09962355,65168.0,65137.0,0.01]
[1718892363953,0.09962355,65168.0,65132.0,0.95769034]
[1718892363954,0.07628172,65161.0,65142.0,0.1795]
[1718892364156,0.49103686,65160.0,65156.0,0.009]
[1718892364363,0.18193686,65159.0,65156.0,0.009]
[1718892364573,0.08193686,65158.0,65156.0,0.009]
[1718892364779,0.08193686,65157.0,65156.0,0.009]
[1718892365192,0.08193686,65157.0,65143.0,0.15256112]
[1718892365395,0.10013055,65157.0,65156.0,0.15256112]
[1718892365595,0.18193686,65157.0,65156.0,0.15256112]
[1718892365744,0.16191964,65157.0,65156.0,0.15871097]
[1718892365948,0.16191964,65157.0,65156.0,0.15256112]
[1718892366146,0.16191964,65157.0,65156.0,0.15871097]
[1718892366555,0.16191964,65157.0,65156.0,0.16271097]
[1718892366759,0.06191964,65157.0,65156.0,0.16271097]
[1718892366978,0.06191964,65157.0,65156.0,0.15871097]
[1718892367380,0.06191964,65157.0,65156.0,0.00614985]
[1718892367584,0.30481964,65157.0,65156.0,0.00614985]
[1718892367786,0.30481964,65157.0,65134.0,0.1825]
[1718892367787,1.5448336,65157.0,65134.0,0.1825]
[1718892368154,1.5448336,65157.0,65156.0,0.011]
[1718892368155,0.56478196,65157.0,65156.0,0.011]
[1718892368376,0.56478196,65157.0,65135.0,0.15875958]
[1718892368377,0.01,65155.0,65135.0,0.15875958]
[1718892368590,0.01,65154.0,65135.0,0.15256112]
[1718892368804,0.11,65156.0,65136.0,0.00619615]
[1718892368805,0.08628172,65150.0,65136.0,0.00619615]
[1718892368995,0.67461467,65149.0,65136.0,0.15875727]
[1718892369200,0.28906,65148.0,65136.0,0.15256112]
[1718892369509,0.1,65147.0,65136.0,0.15256112]
[1718892369728,0.1,65147.0,65137.0,0.00619383]
[1718892370139,0.11,65147.0,65137.0,0.00619383]
[1718892370469,0.01,65147.0,65137.0,0.00619383]
[1718892370677,0.01,65147.0,65127.0,0.1958]
[1718892370877,0.01284914,65149.0,65128.0,0.15877579]
[1718892371285,0.002,65147.0,65128.0,0.15877579]
[1718892371686,0.01,65146.0,65128.0,0.15877579]
[1718892371895,0.01,65146.0,65128.0,0.00621467]
[1718892371896,0.01,65137.0,65128.0,0.00621467]
[1718892372076,0.01,65139.0,65119.0,0.1887]
[1718892372077,0.144364,65136.0,65119.0,0.1887]
[1718892372280,0.209746,65135.0,65120.0,0.15879432]
[1718892372482,0.145746,65134.0,65120.0,0.15879432]
[1718892372723,0.1,65133.0,65120.0,0.15879432]
[1718892372899,0.0355746,65132.0,65120.0,0.15879432]
[1718892373097,0.1,65133.0,65120.0,0.15879432]
[1718892373514,0.11,65133.0,65120.0,0.15879432]
[1718892373860,0.1557791,65138.0,65120.0,0.15874339]
[1718892374086,0.1,65132.0,65120.0,0.15874339]
[1718892374294,0.01,65131.0,65120.0,0.0062332]
[1718892374504,0.01,65131.0,65120.0,0.0182332]
[1718892374711,0.01,65131.0,65120.0,0.012]
[1718892374917,0.01,65131.0,65117.0,0.000946]
[1718892375073,0.011,65130.0,65118.0,0.15256112]
[1718892375455,0.01,65135.0,65118.0,0.15256112]
[1718892375456,0.01,65133.0,65120.0,0.006]
[1718892375657,0.01,65127.0,65120.0,0.006]
[1718892375853,0.12095841,65129.0,65120.0,0.006]
[1718892375854,0.02,65121.0,65120.0,0.006]
[1718892376061,0.396142,65121.0,65120.0,0.006]
[1718892376268,0.496142,65121.0,65120.0,0.006]
[1718892376467,0.1,65121.0,65120.0,0.006]
[1718892376668,0.272302,65121.0,65117.0,0.000946]
[1718892376877,0.1,65120.0,65117.0,0.000946]
[1718892377929,0.42184581,65126.0,65117.0,0.000946]
[1718892378130,0.38687438,65126.0,65117.0,0.000946]
[1718892378463,0.38687438,65126.0,65117.0,0.012946]
[1718892378678,0.38687438,65126.0,65120.0,0.001]
[1718892378679,0.42656182,65126.0,65120.0,0.001]
[1718892378883,0.1,65125.0,65120.0,0.001]
[1718892379090,0.01,65117.0,65095.0,0.1829]
[1718892379340,0.17628172,65122.0,65095.0,0.1829]
[1718892379341,0.01,65114.0,65095.0,0.1829]
[1718892379454,0.1794,65112.0,65100.0,0.00627955]
[1718892379661,0.1,65111.0,65100.0,0.00627955]
[1718892379866,0.1,65111.0,65095.0,0.1829]
[1718892379867,0.04161993,65110.0,65095.0,0.1829]
[1718892380271,0.838952,65109.0,65096.0,0.00628882]
[1718892380480,0.1,65108.0,65096.0,0.00628882]
[1718892380682,0.11126243,65107.0,65096.0,0.00628882]
[1718892380888,0.1,65106.0,65100.0,0.014]
[1718892381471,0.1,65106.0,65092.0,0.63828686]
[1718892381719,0.206872,65105.0,65096.0,0.014]
[1718892381898,0.01,65103.0,65096.0,0.014]
[1718892382096,0.830143,65102.0,65097.0,0.0062865]
[1718892382418,0.62511,65101.0,65092.0,0.40048686]
[1718892382579,0.62511,65101.0,65098.0,0.00628418]
[1718892382580,0.1,65101.0,65098.0,0.00628418]
[1718892382922,0.1,65101.0,65092.0,0.40048686]
[1718892383066,0.01441637,65100.0,65099.0,0.00628186]
[1718892383273,0.01441637,65100.0,65092.0,0.40048686]
[1718892383678,0.14416372,65105.0,65100.0,0.001]
[1718892384068,0.1,65104.0,65094.0,0.01]
[1718892384263,0.1,65107.0,65098.0,0.01]
[1718892384465,0.1,65107.0,65092.0,0.40048686]
[1718892384466,0.00081528,65100.0,65099.0,0.001]
[1718892384672,0.1,65107.0,65100.0,0.1889]
[1718892384896,0.1,65107.0,65106.0,0.01]
[1718892385095,0.1,65107.0,65106.0,0.16256112]
[1718892385301,0.027593,65116.0,65114.0,0.01]
[1718892385503,0.45769034,65126.0,65106.0,0.15882676]
[1718892385504,0.01,65125.0,65106.0,0.15882676]
[1718892385710,0.5632706,65125.0,65115.0,0.00624479]
[1718892385908,0.01,65126.0,65107.0,0.16256112]
[1718892386118,0.316014,65125.0,65109.0,0.01]
[1718892386329,0.1794,65127.0,65110.0,0.15256112]
[1718892386536,0.20720643,65127.0,65110.0,0.16881749]
[1718892386709,0.02780643,65127.0,65114.0,0.4244]
[1718892386949,0.02780643,65127.0,65116.0,0.01]
[1718892387158,0.11,65142.0,65119.0,0.01]
[1718892387368,0.11,65142.0,65124.0,0.1932]
[1718892387369,0.26917,65142.0,65124.0,0.1932]
[1718892387571,0.024091,65143.0,65127.0,0.2263]
[1718892387572,0.08051494,65143.0,65127.0,0.2263]
[1718892387772,0.08051494,65143.0,65128.0,0.16540188]
[1718892387773,0.05263162,65143.0,65128.0,0.16540188]
[1718892387978,0.05263162,65143.0,65128.0,0.16161655]
[1718892388195,0.05263162,65143.0,65129.0,0.01]
[1718892388402,0.05263162,65143.0,65130.0,0.15256112]
[1718892388595,0.05263162,65143.0,65130.0,0.15877116]
[1718892388858,0.05263162,65143.0,65135.0,0.01]
[1718892389070,0.024091,65143.0,65136.0,0.34986112]
[1718892389280,0.024091,65143.0,65136.0,0.35605727]
[1718892389491,0.07628172,65142.0,65136.0,0.00619615]
[1718892389696,0.25693727,65141.0,65136.0,0.00619615]
[1718892389958,0.58999927,65141.0,65127.0,0.002]
[1718892390176,0.542129,65140.0,65127.0,0.002]
[1718892390415,0.542129,65140.0,65119.0,0.2352]
[1718892390416,0.07628172,65134.0,65119.0,0.2252]
[1718892390647,0.573408,65133.0,65129.0,0.002]
[1718892390875,0.24693727,65141.0,65129.0,0.002]